Workbook

Sheet Cover
B3: Excel & Business Math 09
B4: Five Steps to Solve Math Word Problems in Excel
AN5: 1 | AO5: Math Operators used in Excel | AP5: =AN5&") "&AO5 -> 1) Math Operators used in Excel
C6: Topics: | AN6: 2 | AO6: Math Order of Operations | AP6: 2) Math Order of Operations
C7: 1) Five Steps To Solve Math Word Problems: | AD7: =PROPER(AE7) -> Five Steps To Solve Math Word Problems: | AE7: Five Steps To Solve Math Word Problems: | AF7: =ROWS(AF$7:AF7)&") "&AE7 -> 1) Five Steps To Solve Math Word Problems: | AN7: 3 | AO7: Comparative Operators used in Excel | AP7: 3) Comparative Operators used in Excel
C8: 2) Translating English Words Into Math Symbols | AD8: Translating English Words Into Math Symbols | AE8: Translating English Words Into Math Symbols | AF8: =ROWS(AF$7:AF8)&") "&AE8 -> 2) Translating English Words Into Math Symbols | AN8: 4 | AO8: Types of Formulas seen in this class | AP8: 4) Types of Formulas seen in this class
C9: 3) Formula Efficiency Rules From Video 07 | AD9: Formula Efficiency Rules From Video 07 | AE9: Formula Efficiency Rules From Video 07 | AF9: =ROWS(AF$7:AF9)&") "&AE9 -> 3) Formula Efficiency Rules From Video 07 | AN9: 5 | AO9: How to Build Formulas for Business Math | AP9: 5) How to Build Formulas for Business Math
C10: 4) Terms Used In Retail | AD10: Terms Used In Retail | AE10: Terms Used In Retail | AF10: =ROWS(AF$7:AF10)&") "&AE10 -> 4) Terms Used In Retail
C11: 5) Four Math Word Examples | AD11: Four Math Word Examples | AE11: Four Math Word Examples | AF11: =ROWS(AF$7:AF11)&") "&AE11 -> 5) Four Math Word Examples | AO11: =#REF! ->  | AP11: =REPLACE(AU21,1,SEARCH("=",AU21)-1,"") -> 
AF12: =ROWS(AF$7:AF12)&") "&AE12 -> 6) | AO12: =#REF! ->  | AP12: =REPLACE(AU22,1,SEARCH("=",AU22)-1,"") -> 
AF13: =ROWS(AF$7:AF13)&") "&AE13 -> 7) | AO13: =#REF! ->  | AP13: =REPLACE(AU23,1,SEARCH("=",AU23)-1,"") -> 
AO14: =#REF! ->  | AP14: =REPLACE(AU24,1,SEARCH("=",AU24)-1,"") -> 
AO15: =#REF! ->  | AP15: =REPLACE(AU25,1,SEARCH("=",AU25)-1,"") -> 
AO16: =REPLACE(AU16,1,SEARCH("=",AU16)-1,"") ->  | AP16: =#REF! ->  | AU16: =#REF! -> 
AO17: =REPLACE(AU17,1,SEARCH("=",AU17)-1,"") ->  | AP17: =#REF! ->  | AU17: =#REF! -> 
AF18: 1) | AG18: Five Steps To Solve Math Word Problems: | AH18: 1 | AO18: =REPLACE(AU18,1,SEARCH("=",AU18)-1,"") ->  | AP18: =#REF! ->  | AU18: =#REF! -> 
AF19: 2) | AG19: Translating English Words Into Math Symbols | AH19: 1 | AO19: =REPLACE(AU19,1,SEARCH("=",AU19)-1,"") ->  | AP19: =#REF! ->  | AU19: =#REF! -> 
AF20: 3) | AG20: Formula Efficiency Rules From Video 07: | AH20: 2 | AO20: =REPLACE(AU20,1,SEARCH("=",AU20)-1,"") ->  | AU20: =#REF! -> 
AF21: 4) | AG21: Terms Used In Retail | AH21: 3 | AU21: =#REF! -> 
AF22: 5) | AG22: Math Word Problem 01 From Video: | AH22: 4 | AU22: =#REF! -> 
AF23: 6) | AG23: Math Word Problem 02 From Video: | AH23: 5 | AU23: =#REF! -> 
AF24: 7) | AG24: Math Word Problem 03 From Video: | AH24: 6 | AU24: =#REF! -> 
AF25: 8) | AG25: Math Word Problem 04 From Video: | AH25: 7 | AU25: =#REF! -> 

Sheet Steps
B2: Five Steps to Solve Math Word Problems in Excel:
B3: 1) List all relevant facts and numbers with proper labels
B4: 2) State the goal of the problem
B5: 3) Solve problem using Efficient Excel Methods
B6: 4) Check answer
B7: 5) Answer the question with a written statement

Sheet Efficiency
B1: Formula Types:
B2: 1) Number formulas that deliver a single number answers such as a tax deduction or a insurance expense.
B3: 2) Logical formulas (Boolean Formulas) deliver a TRUE or FALSE.
B5: Excel's Golden Rule: If a formula input can change, put it in cell, label it and refer to it with a cell reference.
B7: Formula Elements:
B8: 1) Equal sign, =
B9: 2) Cell references, like A1, $A$1, A1:A10, $A$1:$A$10
B10: 3) Math operators, -, +, /, *, ^, and ( )
B11: 4) Numbers (if they won’t change), like 12 months
B12: 5) Built-in Functions, like SUM and ROUND
B13: 6) Comparative operators, >, <, >=, <=, =, <>
B15: Math order of operations
B16: ( )
B17: ^
B18: * / Left to Right
B19: + - Left to Right
B21: When to use ROUND Function
B22: 1) You are required to round, like with Money.
B23: 2) You have extraneous decimals, like past the penny position.
B24: 3) You will use formula result in a subsequent formula.
B26: SUM Function Hints:
B27: 1) Use SUM Function rather than many plus symbols.
B28: 2) Do not wrap SUM Function around a calculation when the SUM Function is not necessary:

Sheet Words
B2: Translate Words Into Math Symbols
B3: Add | C3: Subtract | D3: Multiply | E3: Divide | F3: Equal | G3: Powers
B4: plus | C4: less | D4: product | E4: divided by | F4: is | G4: squared
B5: more | C5: subtract | D5: double | E5: divided into | F5: the same as | G5: raised to
B6: more than | C6: subtracted from | D6: triple | E6: quotient | F6: equals | G6: to the second power
B7: added to | C7: difference | D7: times | E7: goes into | F7: equal to | G7: cubed
B8: increased by | C8: less than | D8: of | E8: divide | F8: yields | G8: to the 12th power
B9: sum | C9: fewer | D9: twice | E9: divided equally | F9: results in
B10: total | C10: decreased by | D10: twice as much | E10: per | F10: are
B11: sum of | C11: loss of
B12: increase of | C12: minus
B13: gain of | C13: take away
B14: add | C14: reduced by

Sheet W(1)
A3: See Word Document at people web site named "ExcelBusinessMathVideo09WordProblem01.docx"

Sheet Retail
A1: Some of the terms used in Retail:
A2: Retail Store = Store that sells items to final customer, like Target or Safeway
A3: Retail Price = List Price = Price = Amount collected from customer
A4: Wholesale Cost = Net Cost = Cost = Amount business paid to get the item
A5: Number of Units Sold = Count of number of products sold to customer
A6: Gross Profit per Unit = Price - Cost
A7: Revenue = Price * Number of Units Sold
A8: Cost of Good Sold = COGS = Cost * Number of Units Sold
A9: Gross Profit = Revenue - COGS or Gross Profit per Unit * Number of Units Sold
A11: Example:
A12: Quad Price = | B12: 32
A13: Quad Cost = | B13: 17.75
A14: Number Units Sold = | B14: 5
A16: Gross Profit per Unit = Price - Cost | D16: =IF(_xlfn.ISFORMULA(B16),_xlfn.FORMULATEXT(B16),"") -> 
A17: Gross Profit = Gross Profit per Unit * Number of Units Sold
A18: Revenue = Price * Number of Units Sold
A19: COGS = Cost * Number of Units Sold
A20: Gross Profit = Revenue - COGS | E20: Check ü

Sheet Retail (an)
A1: Some of the terms used in Retail:
A2: Retail Store = Store that sells items to final customer, like Target or Safeway
A3: Retail Price = List Price = Price = Amount collected from customer
A4: Wholesale Cost = Net Cost = Cost = Amount business paid to get the item
A5: Number of Units Sold = Count of number of products sold to customer
A6: Gross Profit per Unit = Price - Cost
A7: Revenue = Price * Number of Units Sold
A8: Cost of Good Sold = COGS = Cost * Number of Units Sold
A9: Gross Profit = Revenue - COGS or Gross Profit per Unit * Number of Units Sold
A11: Example:
A12: Quad Price = | B12: 32
A13: Quad Cost = | B13: 17.75
A14: Number Units Sold = | B14: 5
A16: Gross Profit per Unit = Price - Cost | B16: =B12-B13 -> 14.25 | D16: =IF(_xlfn.ISFORMULA(B16),_xlfn.FORMULATEXT(B16),"") -> =B12-B13
A17: Gross Profit = Gross Profit per Unit * Number of Units Sold | B17: =B16*B14 -> 71.25 | D17: =B16*B14
A18: Revenue = Price * Number of Units Sold | B18: =B12*B14 -> 160 | D18: =B12*B14
A19: COGS = Cost * Number of Units Sold | B19: =B13*B14 -> 88.75 | D19: =B13*B14
A20: Gross Profit = Revenue - COGS | B20: =B18-B19 -> 71.25 | D20: =B18-B19 | E20: Check ü

Sheet W(2)
A1: Use the Five Steps to Solve Math Word Problems for this problem.
A2: If you sell 5 Quad boomerangs for $32.00 each and the cost for each was $17.75 and you sell 2 | K2: Carlota
A3: Carlota boomerangs for $22 each and the cost for each was $13, what was the Total Gross Profit that you made?
A4: The companies prices never include decimals past the penny position.
A6: 1) List all relevant facts and numbers with proper labels | E6: 2) State the goal of the problem
K11: Quad:
A16: 3) Solve problem using Efficient Excel Methods | E16: 4) Check answer
A26: 5) Answer the question with a written statement

Sheet W(2an)
A1: Use the Five Steps to Solve Math Word Problems for this problem.
A2: If you sell 5 Quad boomerangs for $32.00 each and the cost for each was $17.75 and you sell 2 | K2: Carlota:
A3: Carlota boomerangs for $22 each and the cost for each was $13, what was the Total Gross Profit that you made?
A4: The companies prices never include decimals past the penny position.
A6: 1) List all relevant facts and numbers with proper labels | E6: 2) State the goal of the problem
A8: # Quad Boomerangs Sold | B8: 5 | E8: Goal: Calculate Total Gross Profit
A9: Price for one Quad | B9: 32
A10: Cost of Quad | B10: 17.75
A11: # Carlota Boomerangs Sold | B11: 2 | K11: Quad:
A12: Price for one Carlota | B12: 22
A13: Cost of Carlota | B13: 13
A14: Note: The companies prices never include decimals past the penny position. This means I do not have to round if I am multiplying whole units times dollars and cents.
A16: 3) Solve problem using Efficient Excel Methods | E16: 4) Check answer
A18: Total Revenue for Quad | B18: =B8*B9 -> 160 | D18: =IF(_xlfn.ISFORMULA(B18),_xlfn.FORMULATEXT(B18),"") -> =B8*B9 | E18: Gross Profit for One Quad | F18: =B9-B10 -> 14.25 | H18: =IF(_xlfn.ISFORMULA(F18),_xlfn.FORMULATEXT(F18),"") -> =B9-B10
A19: Total Revenue for Carlota | B19: =B11*B12 -> 44 | D19: =B11*B12 | E19: Gross Profit for One Carlota | F19: =B12-B13 -> 9 | H19: =B12-B13
A20: Total Revenue | B20: =SUM(B18:B19) -> 204 | D20: =SUM(B18:B19) | E20: Total Gross Profit | F20: =SUM(F18*B8,F19*B11) -> 89.25 | H20: =SUM(F18*B8,F19*B11)
A21: Total COGS for Quad | B21: =B8*B10 -> 88.75 | D21: =B8*B10
A22: Total COGS for Carlota | B22: =B11*B13 -> 26 | D22: =B11*B13 | F22: Check ü
A23: Total COGS | B23: =SUM(B21:B22) -> 114.75 | D23: =SUM(B21:B22)
A24: Total Gross Profit | B24: =B20-B23 -> 89.25 | D24: =B20-B23
A26: 5) Answer the question with a written statement
A28: The Total Gross Profit was $89.25.

Sheet W(3)
A1: Use the Five Steps to Solve Math Word Problems for this problem.
A2: A federal law requires that all residential toilets sold is the USA use no more than 1.5 gallons of water per flush.
A3: Prior to this legislation, conventional toilets used 3.2 gallons of water per flush.
A4: Find the amount of water saved in one year by a family flushing the toilet 20 times each day (1 year = 365 days).
A6: 1) List all relevant facts and numbers with proper labels | E6: 2) State the goal of the problem
A15: 3) Solve problem using Efficient Excel Methods | E15: 4) Check answer
A22: 5) Answer the question with a written statement

Sheet W(3an)
A1: Use the Five Steps to Solve Math Word Problems for this problem.
A2: A federal law requires that all residential toilets sold is the USA use no more than 1.5 gallons of water per flush.
A3: Prior to this legislation, conventional toilets used 3.2 gallons of water per flush.
A4: Find the amount of water saved in one year by a family flushing the toilet 20 times each day (1 year = 365 days).
A6: 1) List all relevant facts and numbers with proper labels | E6: 2) State the goal of the problem
A8: Required gallons per flush for residential toilets | B8: 1.5 | C8: gallons | E8: Goal: Calculate the amount of water saved in one year by family flushing 20 times per day
A9: Conventional toilet gallons per flush | B9: 3.2 | C9: gallons
A10: Number of flushes per day | B10: 20
A11: Number days in year | B11: 365
A15: 3) Solve problem using Efficient Excel Methods | E15: 4) Check answer
A17: Number gallons saved with new residential toilets for 1 flush | B17: =B9-B8 -> 1.7 | C17: gallons | D17: =IF(_xlfn.ISFORMULA(B17),_xlfn.FORMULATEXT(B17),"") -> =B9-B8 | E17: Amount of water saved in one year | F17: =(B9-B8)*B10*B11 -> 12410 | G17: gallons | H17: =IF(_xlfn.ISFORMULA(F17),_xlfn.FORMULATEXT(F17),"") -> =(B9-B8)*B10*B11
A18: Total Flushes in one year | B18: =B11*B10 -> 7300 | D18: =B11*B10
A19: Amount of water saved in one year | B19: =B18*B17 -> 12410 | C19: gallons | D19: =B18*B17
F20: Check ü
A22: 5) Answer the question with a written statement
A24: If a family flushes 20 time a day and switches from a conventional toilet to the new residential toilet they can expect to save about 12,410 gallons of water in one year.

Sheet W(4)
A1: Use the Five Steps to Solve Math Word Problems for this problem.
A2: Timmy Pham drives a truck for Mad Dog Trucking. On a recent long haul, he drove 423 miles in 6.5 hours without a stop.
A3: What was the average miles per hour that Timmy drove?
A4: Round to the nearest mile per hour
A6: 1) List all relevant facts and numbers with proper labels | E6: 2) State the goal of the problem
A16: 3) Solve problem using Efficient Excel Methods | E16: 4) Check answer
A23: 5) Answer the question with a written statement

Sheet W(4an)
A1: Use the Five Steps to Solve Math Word Problems for this problem.
A2: Timmy Pham drives a truck for Mad Dog Trucking. On a recent long haul, he drove 423 miles in 6.5 hours without a stop.
A3: What was the average miles per hour that Timmy drove?
A4: Round to the nearest mile per hour
A6: 1) List all relevant facts and numbers with proper labels | E6: 2) State the goal of the problem
A8: Total Miles driven | B8: 423 | C8: Miles | E8: Goal: Calculate average miles per hour that Timmy drove
A9: Hours driven | B9: 6.5 | C9: Hours
A10: Miles per hours = miles / hour
A13: Note: Anytime we do division with different units in Numerator and Denominator we can leave units in both Numerator and Denominator
A14: and leave a one (1) in the Denominator to help us decipher what the meaning of the ratio is.
A16: 3) Solve problem using Efficient Excel Methods | E16: 4) Check answer
A18: miles per hour = miles/hour = 423 miles/6.5 hours | B18: =B8/B9 -> 65.07692308 | C18: Miles / Hour | D18: =IF(_xlfn.ISFORMULA(B18),_xlfn.FORMULATEXT(B18),"") -> =B8/B9 | E18: Check answer with unrounded numbers | F18: =B18*B9 -> 423 | G18: Check ü | H18: =IF(_xlfn.ISFORMULA(F18),_xlfn.FORMULATEXT(F18),"") -> =B18*B9
A19: 65 Miles / 1 Hour | B19: =ROUND(B18,0) -> 65 | C19: Miles / Hour | D19: =ROUND(B18,0) | E19: Check answer with rounded number | F19: =B19*B9 -> 422.5 | G19: Incorrect | H19: =B19*B9
A23: 5) Answer the question with a written statement
A25: Average miles per hour that Timmy drove was 65 miles per hour

Sheet HW ==>>

Sheet HW(1)
A1: Use the Five Steps to Solve Math Word Problems for this problem.
A2: On a normal weekday, the vending machines at Juniper College dispense 900 sodas, 400 candy bars, 500 snack items and 200 cups of coffee.
A3: If it takes Sioux Chin four hours to restock the vending machines, how many items does he restock per hour?

Sheet HW(1an)
A1: Use the Five Steps to Solve Math Word Problems for this problem.
A2: On a normal weekday, the vending machines at Juniper College dispense 900 sodas, 400 candy bars, 500 snack items and 200 cups of coffee.
A3: If it takes Sioux Chin four hours to restock the vending machines, how many items does he restock per hour?
A6: 1) List all relevant facts and numbers with proper labels | E6: 2) State the goal of the problem
A8: # of Sodas | B8: 900 | E8: Goal: Find how many items Sioux can re-stock in 1 hour
A9: # candy bars | B9: 400
A10: # of Snack items | B10: 500
A11: # Cups of coffee | B11: 200
A12: There are more than one vending machine
A13: Time to restock all machines | B13: 4 | C13: hours
A14: Hours considered | B14: 1
A16: 3) Solve problem using Efficient Excel Methods | E16: 4) Check answer
A18: Total items | B18: =SUM(B8:B11) -> 2000 | D18: =IF(_xlfn.ISFORMULA(B18),_xlfn.FORMULATEXT(B18),"") -> =SUM(B8:B11) | E18: # of Items per hour | F18: =SUM(B8:B11)/B13 -> 500 | H18: =IF(_xlfn.ISFORMULA(F18),_xlfn.FORMULATEXT(F18),"") -> =SUM(B8:B11)/B13
A19: # of Items per hour | B19: =B18/B13 -> 500 | D19: =B18/B13
F21: Check ü
A23: 5) Answer the question with a written statement
A25: Sioux can restock 500 items per hour.

Sheet HW(2)
A1: Use the Five Steps to Solve Math Word Problems for this problem.
A2: The federal Highway Administration estimates that total miles driven fell from 3020 billion miles last year to 2920 billion miles this year.
A3: Find the reduction in miles driven.

Sheet HW(2an)
A1: Use the Five Steps to Solve Math Word Problems for this problem.
A2: The federal Highway Administration estimates that total miles driven fell from 3020 billion miles last year to 2920 billion miles this year.
A3: Find the reduction in miles driven.
A6: 1) List all relevant facts and numbers with proper labels | E6: 2) State the goal of the problem
A8: # miles driven last year | B8: 3020 | C8: billion | E8: Goal: Find reduction in miles driven
A9: # Miles driven this year | B9: 2920 | C9: billion
A12: 3) Solve problem using Efficient Excel Methods | E12: 4) Check answer
A14: Reduction in miles driven this year as compared to last year | B14: =B9-B8 -> -100 | C14: billion miles | D14: =IF(_xlfn.ISFORMULA(B14),_xlfn.FORMULATEXT(B14),"") -> =B9-B8 | E14: Add reduction to # miles this year | F14: =-B14+B9 -> 3020 | H14: =IF(_xlfn.ISFORMULA(F14),_xlfn.FORMULATEXT(F14),"") -> =-B14+B9
F16: Check ü
A18: 5) Answer the question with a written statement
A20: Reduction in miles driven this year as compared to last year was 100 billion miles

Sheet HW(3)
A1: Use the Five Steps to Solve Math Word Problems for this problem.
A2: According to the Department of Veterans Affairs, U.S. World War II veterans are dying at a rate of 607 per day.
A3: How many World War II veterans are projected to die in the next 365 days (one year)?

Sheet HW(3an)
A1: Use the Five Steps to Solve Math Word Problems for this problem.
A2: According to the Department of Veterans Affairs, U.S. World War II veterans are dying at a rate of 607 per day.
A3: How many World War II veterans are projected to die in the next 365 days (one year)?
A6: 1) List all relevant facts and numbers with proper labels | E6: 2) State the goal of the problem
A8: WW II veterans deaths per day | B8: 607 | E8: Goal: Project how many WW II veterans will die in next year
A9: Days in year | B9: 365
A11: 3) Solve problem using Efficient Excel Methods | E11: 4) Check answer
A13: Projected deaths next year | B13: =B8*B9 -> 221555 | D13: =IF(_xlfn.ISFORMULA(B13),_xlfn.FORMULATEXT(B13),"") -> =B8*B9 | E13: Total Projected # of deaths/# deaths per day = # of days | F13: =B13/B8 -> 365 | H13: =IF(_xlfn.ISFORMULA(F13),_xlfn.FORMULATEXT(F13),"") -> =B13/B8
F15: Check ü
H16: =IF(_xlfn.ISFORMULA(F16),_xlfn.FORMULATEXT(F16),"") -> 
A17: 5) Answer the question with a written statement
A19: The projected number of WW II veterans that will die in the next year is 221,555

Sheet HW(4)
A1: Use the Five Steps to Solve Math Word Problems for this problem.
A2: A fishing boat weighs 8,375 pounds. If its 762-pound engine is removed and replaced with a 976-pound engine,
A3: what is the new weight of the boat after the engine change?

Sheet HW(4an)
A1: Use the Five Steps to Solve Math Word Problems for this problem.
A2: A fishing boat weighs 8,375 pounds. If its 762-pound engine is removed and replaced with a 976-pound engine,
A3: what is the new weight of the boat after the engine change?
A6: 1) List all relevant facts and numbers with proper labels | E6: 2) State the goal of the problem
A8: Boat weight | B8: 8375 | C8: lbs. | E8: Goal: Calculate new weight of the boat after the engine change
A9: Engine removed weight | B9: 762 | C9: lbs.
A10: New Engine weight | B10: 976 | C10: lbs.
A12: 3) Solve problem using Efficient Excel Methods | E12: 4) Check answer
A14: Boat weight after engine change | B14: =B8-B9+B10 -> 8589 | D14: =IF(_xlfn.ISFORMULA(B14),_xlfn.FORMULATEXT(B14),"") -> =B8-B9+B10 | E14: New Weight - new engine + old engine | F14: =B14-B10+B9 -> 8375 | H14: =IF(_xlfn.ISFORMULA(F14),_xlfn.FORMULATEXT(F14),"") -> =B14-B10+B9
F17: Check ü
A19: 5) Answer the question with a written statement
A21: The new weight of the boat after the engine change is 8,589 lbs.

Sheet HW(5)
A1: Use the Five Steps to Solve Math Word Problems for this problem.
A2: At one Safeway the price of T-bone steak is $6.71 per pound, while at QFC the price of chicken was $1.39 per pound.
A3: How much more per pound is the price of T-bone streak than chicken?

Sheet HW(5an)
A1: Use the Five Steps to Solve Math Word Problems for this problem.
A2: At one Safeway the price of T-bone steak is $6.71 per pound, while at QFC the price of chicken was $1.39 per pound.
A3: How much more per pound is the price of T-bone streak than chicken?
A6: 1) List all relevant facts and numbers with proper labels | E6: 2) State the goal of the problem
A8: price of T-bone steak per pound | B8: 6.71 | E8: Goal: Find how much more per pound the price of T-bone streak is than Chicken
A9: price of chicken steak per pound | B9: 1.39
A11: 3) Solve problem using Efficient Excel Methods | E11: 4) Check answer
A13: Difference between price per pound of T-Bone than chicken | B13: =B8-B9 -> 5.32 | D13: =IF(_xlfn.ISFORMULA(B13),_xlfn.FORMULATEXT(B13),"") -> =B8-B9 | E13: Difference + Price 1 pound chicken | F13: =B13+B9 -> 6.71 | H13: =IF(_xlfn.ISFORMULA(F13),_xlfn.FORMULATEXT(F13),"") -> =B13+B9
F15: Check ü
A16: 5) Answer the question with a written statement
A18: T-bone is $5.32 more per pound than is turkey.

Sheet HW(6)
A1: Use the Five Steps to Solve Math Word Problems for this problem.
A2: To reduce his driving costs as a salesperson, Iesha Smith bought a Toyota Prius.
A3: In her first week she drive 519 miles in and around the city and used 10.2 gallons of gas.
A4: Find the miles per gallon to the nearest tenth.

Sheet HW(6an)
A1: Use the Five Steps to Solve Math Word Problems for this problem.
A2: To reduce his driving costs as a salesperson, Iesha Smith bought a Toyota Prius.
A3: In her first week she drive 519 miles in and around the city and used 10.2 gallons of gas.
A4: Find the miles per gallon to the nearest tenth.
A6: 1) List all relevant facts and numbers with proper labels | E6: 2) State the goal of the problem
A8: Miles in 1 week | B8: 519 | C8: miles | E8: Goal: Find miles per gallon to the nearest tenth
A9: Gas used | B9: 10.2 | C9: gallon of gas
A10: Note: miles per gallon = Miles per one gallon = miles/gallon
A13: 3) Solve problem using Efficient Excel Methods | E13: 4) Check answer
A15: Divide Miles/Gallons to get: miles per 1 gallon | B15: =B8/B9 -> 50.88235294 | C15: miles/gallon | D15: =IF(_xlfn.ISFORMULA(B15),_xlfn.FORMULATEXT(B15),"") -> =B8/B9 | E15: Check answer with unrounded numbers | F15: =B15*B9 -> 519 | G15: Check ü | H15: =IF(_xlfn.ISFORMULA(F15),_xlfn.FORMULATEXT(F15),"") -> =B15*B9
A16: Round to the tenth (1) | B16: =ROUND(B15,1) -> 50.9 | C16: miles/gallon | D16: =ROUND(B15,1) | E16: Check answer with rounded number | F16: =B16*B9 -> 519.18 | G16: Incorrect | H16: =B16*B9
A20: 5) Answer the question with a written statement
A22: The auto got 50.9 miles per gallon

Sheet HW(7)
A1: Use the Five Steps to Solve Math Word Problems for this problem.
A2: Each dose of a medication contains 1.62 milligrams of a certain ingredient.
A3: Find the number of doses that can be made from 57.13 milligrams of that certain ingredient.

Sheet HW(7an)
A1: Use the Five Steps to Solve Math Word Problems for this problem.
A2: Each dose of a medication contains 1.62 milligrams of a certain ingredient.
A3: Find the number of doses that can be made from 57.13 milligrams of that certain ingredient.
A6: 1) List all relevant facts and numbers with proper labels | E6: 2) State the goal of the problem
A8: Amount of certain ingredient for one dose of medication | B8: 1.62 | C8: milligrams | E8: Goal: Find the total number of doses of medication that can be made
A9: Total amount of certain ingredient | B9: 57.13 | C9: milligrams
A10: Note:
A11: Because it asks for "Number of doses", we know that we are counting, 1, 2, 3, 4 and so on.
A12: When we make our calculation, we must use just the integer part of the quotient
A14: 3) Solve problem using Efficient Excel Methods | E14: 4) Check answer
A16: Number of doses = Total amount of ingredient / Amount of ingredient for 1 dose | B16: =B9/B8 -> 35.2654321 | D16: =IF(_xlfn.ISFORMULA(B16),_xlfn.FORMULATEXT(B16),"") -> =B9/B8 | E16: Check answer with unrounded numbers | F16: =B16*B8 -> 57.13 | G16: Check ü | H16: =IF(_xlfn.ISFORMULA(F16),_xlfn.FORMULATEXT(F16),"") -> =B16*B8
A17: We must use just the integer part of the quotient | B17: =QUOTIENT(B9,B8) -> 35 | D17: =QUOTIENT(B9,B8) | E17: Check answer with rounded number | F17: =B17*B8 -> 56.7 | G17: Incorrect | H17: =B17*B8
A19: 5) Answer the question with a written statement
A21: The total number of doses of medication that can be made is 35
